[Event "FIDE U16 Olympiad_boards_1-80"]
[Site "Eindhoven, Netherlands"]
[Date "2023.08.13"]
[Round "1.58"]
[White "Gasparyan, Erik R."]
[Black "Muto, Yuhiro"]
[Result "1-0"]
[TimeControl "2700+10"]
[WhiteElo "2272"]
[BlackElo "1626"]

1. e4 {[%clk 00:45:16]} {[%emt 00:00:03]} e5 {[%clk 00:45:18]} {[%emt
00:00:03]} 2. Nf3 {[%clk 00:45:22]} {[%emt 00:00:03]} Nc6 {[%clk 00:45:26]}
{[%emt 00:00:03]} 3. Bb5 {[%clk 00:45:28]} {[%emt 00:00:04]} a6 {[%clk
00:45:34]} {[%emt 00:00:02]} 4. Ba4 {[%clk 00:45:35]} {[%emt 00:00:03]} Nf6
{[%emt 00:00:05]} 5. O-O {[%clk 00:45:41]} {[%emt 00:00:02]} Be7 {[%clk
00:45:50]} {[%emt 00:00:02]} 6. Re1 {[%clk 00:45:48]} {[%emt 00:00:02]} b5
{[%clk 00:45:44]} {[%emt 00:00:17]} 7. Bb3 {[%clk 00:45:55]} {[%emt 00:00:02]}
d6 {[%clk 00:45:47]} {[%emt 00:00:07]} 8. c3 {[%clk 00:45:40]} {[%emt
00:00:25]} Na5 {[%clk 00:45:45]} {[%emt 00:00:12]} 9. Bc2 {[%clk 00:45:43]}
{[%emt 00:00:06]} c5 {[%clk 00:45:54]} {[%emt 00:00:03]} 10. d4 {[%clk
00:44:45]} {[%emt 00:01:07]} Qc7 {[%clk 00:46:02]} {[%emt 00:00:02]} 11. Nbd2
{[%clk 00:41:33]} {[%emt 00:03:20]} O-O {[%clk 00:45:41]} {[%emt 00:00:33]} 12.
d5 {[%clk 00:40:50]} {[%emt 00:00:52]} Re8 {[%clk 00:40:04]} {[%emt 00:05:48]}
13. Nf1 {[%clk 00:40:26]} {[%emt 00:00:32]} h6 {[%clk 00:39:24]} {[%emt
00:00:53]} 14. Ng3 {[%clk 00:40:03]} {[%emt 00:00:32]} Bf8 {[%clk 00:37:36]}
{[%emt 00:01:58]} 15. b3 {[%clk 00:36:58]} {[%emt 00:03:15]} c4 {[%clk
00:36:20]} {[%emt 00:01:27]} 16. b4 {[%clk 00:37:06]} {[%emt 00:00:02]} Nb7
{[%clk 00:35:42]} {[%emt 00:00:47]} 17. a4 {[%clk 00:37:13]} {[%emt 00:00:03]}
Bd7 {[%clk 00:35:24]} {[%emt 00:00:29]} 18. a5 {[%clk 00:35:55]} {[%emt
00:01:27]} Bg4 {[%clk 00:32:20]} {[%emt 00:03:14]} 19. h3 {[%clk 00:35:48]}
{[%emt 00:00:17]} Bh5 {[%clk 00:26:06]} {[%emt 00:06:25]} 20. Nxh5 {[%clk
00:34:51]} {[%emt 00:01:07]} Nxh5 {[%clk 00:26:14]} {[%emt 00:00:02]} 21. Nxe5
{[%clk 00:34:40]} {[%emt 00:00:20]} Rxe5 {[%clk 00:25:35]} {[%emt 00:00:49]} 22.
f4 {[%clk 00:34:48]} {[%emt 00:00:02]} Nxf4 23. Bxf4 {[%clk 00:34:55]} Ree8
{[%clk 00:22:57]} {[%emt 00:01:17]} 24. Qd4 {[%emt 00:09:19]} g5 {[%clk
00:18:08]} 25. Be3 {[%clk 00:30:46]} {[%emt 00:00:09]} Nd8 {[%clk 00:16:38]}
{[%emt 00:01:40]} 26. Rf1 {[%clk 00:30:03]} {[%emt 00:00:54]} Bg7 {[%clk
00:15:58]} {[%emt 00:00:50]} 27. Qd2 {[%clk 00:30:10]} {[%emt 00:00:02]} Qe7
{[%clk 00:13:33]} {[%emt 00:02:36]} 28. Rf5 {[%clk 00:28:21]} {[%emt 00:01:57]}
f6 {[%clk 00:07:44]} {[%emt 00:06:01]} 29. e5 {[%clk 00:27:58]} {[%emt
00:00:32]} fxe5 {[%clk 00:07:00]} {[%emt 00:00:54]} 30. Be4 {[%clk 00:25:00]}
{[%emt 00:03:08]} Nf7 {[%clk 00:06:15]} {[%emt 00:00:56]} 31. Raf1 {[%clk
00:24:43]} {[%emt 00:00:26]} Rf8 {[%clk 00:06:17]} {[%emt 00:00:08]} 32. Qe2
{[%clk 00:24:29]} {[%emt 00:00:24]} Nh8 {[%emt 00:01:04]} 33. Qg4 {[%clk
00:24:35]} Rf6 {[%clk 00:02:04]} {[%emt 00:03:33]} 34. h4 {[%clk 00:24:29]}
{[%emt 00:00:16]} Raf8 {[%clk 00:01:01]} {[%emt 00:01:13]} 35. hxg5 {[%clk
00:24:36]} {[%emt 00:00:02]} Rxf5 {[%clk 00:01:04]} {[%emt 00:00:09]} 36. Bxf5
{[%clk 00:24:36]} {[%emt 00:00:09]} hxg5 {[%clk 00:00:42]} {[%emt 00:00:32]} 37.
Bxg5 {[%clk 00:24:26]} {[%emt 00:00:20]} Qa7+ {[%clk 00:00:50]} {[%emt
00:00:02]} 38. Kh2 {[%clk 00:24:22]} {[%emt 00:00:15]} Nf7 {[%clk 00:00:52]}
{[%emt 00:00:07]} 39. Be6 {[%clk 00:24:15]} {[%emt 00:00:16]} e4 {[%clk
00:00:29]} {[%emt 00:00:34]} 40. Bh6 {[%clk 00:24:15]} {[%emt 00:00:10]} Qe7
{[%clk 00:00:16]} {[%emt 00:00:24]} 41. Qxg7# {[%clk 00:24:22]} {[%emt
00:00:03]} 1-0

[Event "FIDE U16 Olympiad_boards_1-80"]
[Site "Eindhoven, Netherlands"]
[Date "2023.08.13"]
[Round "1.59"]
[White "Tatsumi, Kai"]
[Black "Agasarov, Benik"]
[Result "0-1"]
[TimeControl "2700+10"]
[WhiteElo "1154"]
[BlackElo "2182"]

1. e4 {[%clk 00:45:10]} {[%emt 00:00:09]} c5 {[%clk 00:45:12]} {[%emt
00:00:09]} 2. Nf3 {[%clk 00:45:15]} {[%emt 00:00:05]} e6 {[%clk 00:45:16]}
{[%emt 00:00:06]} 3. d4 {[%clk 00:45:20]} {[%emt 00:00:04]} cxd4 {[%clk
00:45:23]} {[%emt 00:00:04]} 4. Nxd4 {[%clk 00:45:28]} {[%emt 00:00:02]} Nc6
{[%clk 00:45:28]} {[%emt 00:00:04]} 5. Nb5 {[%clk 00:44:57]} {[%emt 00:00:41]}
Nf6 {[%clk 00:44:10]} {[%emt 00:01:28]} 6. N1c3 {[%clk 00:44:37]} {[%emt
00:00:30]} Bb4 {[%clk 00:43:32]} {[%emt 00:00:48]} 7. Bd3 {[%clk 00:41:18]}
{[%emt 00:03:29]} a6 {[%clk 00:43:12]} {[%emt 00:00:30]} 8. Na3 {[%clk
00:40:59]} {[%emt 00:00:29]} d5 {[%clk 00:42:54]} {[%emt 00:00:28]} 9. exd5
{[%clk 00:39:48]} {[%emt 00:01:22]} Nxd5 {[%clk 00:42:50]} {[%emt 00:00:14]} 10.
Bd2 {[%clk 00:38:53]} {[%emt 00:01:04]} Nxc3 {[%clk 00:42:34]} {[%emt
00:00:26]} 11. Bxc3 {[%clk 00:38:58]} {[%emt 00:00:06]} Bxc3+ {[%clk 00:42:34]}
{[%emt 00:00:10]} 12. bxc3 {[%clk 00:39:05]} {[%emt 00:00:02]} Qa5 {[%clk
00:42:40]} {[%emt 00:00:03]} 13. Nb1 {[%clk 00:37:06]} {[%emt 00:02:10]} O-O
{[%clk 00:41:58]} {[%emt 00:00:52]} 14. O-O {[%clk 00:36:15]} {[%emt 00:01:01]}
Rd8 {[%clk 00:40:09]} {[%emt 00:01:59]} 15. Qg4 {[%clk 00:28:18]} {[%emt
00:08:07]} Ne5 {[%clk 00:38:42]} {[%emt 00:01:37]} 16. Qg3 {[%clk 00:28:05]}
{[%emt 00:00:23]} Bd7 {[%clk 00:38:29]} {[%emt 00:00:23]} 17. Nd2 {[%clk
00:24:55]} {[%emt 00:03:18]} Nxd3 {[%clk 00:38:37]} {[%emt 00:00:04]} 18. cxd3
{[%clk 00:24:37]} {[%emt 00:00:29]} Qxc3 {[%clk 00:38:04]} {[%emt 00:00:43]} 19.
Ne4 {[%clk 00:23:16]} {[%emt 00:01:30]} Qd4 {[%clk 00:38:09]} {[%emt 00:00:05]}
20. Rac1 {[%clk 00:21:19]} {[%emt 00:02:06]} Bb5 {[%clk 00:36:31]} {[%emt
00:01:49]} 21. Rfd1 {[%clk 00:18:40]} {[%emt 00:02:49]} h6 {[%clk 00:35:38]}
{[%emt 00:01:04]} 22. Qf3 {[%clk 00:13:12]} {[%emt 00:05:38]} Rac8 {[%clk
00:34:29]} {[%emt 00:01:18]} 23. Rxc8 {[%clk 00:09:18]} {[%emt 00:04:04]} Rxc8
{[%clk 00:34:37]} {[%emt 00:00:02]} 24. h3 {[%clk 00:08:29]} {[%emt 00:00:59]}
Rc2 {[%clk 00:34:22]} {[%emt 00:00:25]} 25. Rd2 {[%clk 00:07:32]} {[%emt
00:01:06]} Rc1+ {[%clk 00:33:10]} {[%emt 00:01:23]} 26. Kh2 {[%clk 00:06:36]}
{[%emt 00:01:05]} Bc6 {[%clk 00:32:44]} {[%emt 00:00:37]} 27. Qe2 {[%clk
00:05:43]} {[%emt 00:01:03]} Qa1 {[%clk 00:28:28]} {[%emt 00:04:26]} 28. Qh5
{[%clk 00:03:12]} {[%emt 00:02:40]} Bxe4 {[%clk 00:28:07]} {[%emt 00:00:32]} 29.
Qa5 {[%clk 00:02:02]} {[%emt 00:01:21]} Bd5 {[%clk 00:27:59]} {[%emt 00:00:17]}
30. Re2 {[%clk 00:01:49]} {[%emt 00:00:22]} Rh1+ {[%clk 00:27:56]} {[%emt
00:00:14]} 31. Kg3 {[%clk 00:01:57]} {[%emt 00:00:02]} Qf6 {[%clk 00:27:59]}
{[%emt 00:00:06]} 32. Qb4 {[%clk 00:01:37]} {[%emt 00:00:31]} Qg5+ {[%clk
00:27:50]} {[%emt 00:00:20]} 33. Qg4 {[%clk 00:01:45]} {[%emt 00:00:02]} Qxg4+
{[%clk 00:27:58]} {[%emt 00:00:02]} 34. hxg4 {[%clk 00:01:47]} {[%emt
00:00:08]} Ra1 {[%clk 00:28:06]} {[%emt 00:00:02]} 35. Rc2 {[%clk 00:01:37]}
{[%emt 00:00:20]} Rxa2 {[%clk 00:28:14]} {[%emt 00:00:02]} 36. Rc7 {[%clk
00:01:35]} {[%emt 00:00:12]} Ra3 {[%clk 00:28:20]} {[%emt 00:00:03]} 37. Kf4
{[%clk 00:01:37]} {[%emt 00:00:07]} Rxd3 {[%clk 00:28:28]} {[%emt 00:00:03]} 38.
g5 {[%clk 00:01:38]} {[%emt 00:00:09]} hxg5+ {[%clk 00:28:36]} {[%emt
00:00:02]} 39. Kxg5 {[%clk 00:01:46]} {[%emt 00:00:03]} Bxg2 {[%clk 00:28:44]}
{[%emt 00:00:02]} 40. f4 {[%clk 00:01:50]} {[%emt 00:00:06]} Be4 {[%clk
00:28:46]} {[%emt 00:00:07]} 41. f5 {[%clk 00:01:39]} {[%emt 00:00:21]} Bxf5
{[%clk 00:28:35]} {[%emt 00:00:21]} 42. Rc8+ {[%clk 00:01:45]} {[%emt
00:00:05]} Kh7 {[%clk 00:28:44]} {[%emt 00:00:01]} 43. Rc4 {[%clk 00:01:53]}
{[%emt 00:00:02]} f6+ {[%clk 00:28:48]} {[%emt 00:00:05]} 44. Kh4 {[%clk
00:01:57]} {[%emt 00:00:06]} Rh3# {[%clk 00:28:57]} {[%emt 00:00:02]} 0-1

[Event "FIDE U16 Olympiad_boards_1-80"]
[Site "Eindhoven, Netherlands"]
[Date "2023.08.13"]
[Round "1.60"]
[White "Hayrapetyan, Nvard"]
[Black "Yamada, Misaki"]
[Result "1-0"]
[TimeControl "2700+10"]
[WhiteElo "1530"]
[BlackElo "1462"]

1. d4 {[%clk 00:45:18]} {[%emt 00:00:02]} d5 {[%clk 00:45:16]} {[%emt
00:00:04]} 2. c4 {[%clk 00:45:25]} {[%emt 00:00:03]} e6 {[%clk 00:45:24]}
{[%emt 00:00:02]} 3. Nc3 {[%clk 00:45:33]} {[%emt 00:00:03]} Be7 {[%clk
00:45:32]} 4. Nf3 {[%clk 00:45:39]} {[%emt 00:00:05]} Nf6 {[%clk 00:45:39]}
{[%emt 00:00:03]} 5. Bg5 {[%clk 00:45:45]} {[%emt 00:00:03]} h6 {[%clk
00:45:46]} {[%emt 00:00:03]} 6. Bh4 {[%clk 00:45:39]} {[%emt 00:00:17]} O-O
{[%clk 00:45:52]} {[%emt 00:00:03]} 7. e3 {[%clk 00:45:46]} {[%emt 00:00:04]}
b6 {[%clk 00:45:59]} {[%emt 00:00:03]} 8. cxd5 {[%clk 00:45:46]} {[%emt
00:00:10]} exd5 {[%clk 00:46:05]} {[%emt 00:00:03]} 9. Qc2 {[%clk 00:45:49]}
{[%emt 00:00:08]} Bb7 {[%clk 00:45:48]} {[%emt 00:00:26]} 10. Bd3 {[%clk
00:45:37]} {[%emt 00:00:23]} Nbd7 {[%clk 00:45:07]} {[%emt 00:00:51]} 11. O-O
{[%clk 00:45:27]} {[%emt 00:00:20]} c5 {[%clk 00:44:19]} {[%emt 00:00:57]} 12.
Rac1 {[%clk 00:44:03]} {[%emt 00:01:35]} Rc8 {[%clk 00:41:19]} {[%emt
00:03:09]} 13. Bf5 {[%clk 00:36:46]} {[%emt 00:07:27]} Rc6 {[%clk 00:23:48]}
{[%emt 00:17:40]} 14. Rfd1 {[%clk 00:32:24]} {[%emt 00:04:32]} cxd4 {[%clk
00:06:04]} {[%emt 00:17:53]} 15. exd4 {[%clk 00:30:32]} {[%emt 00:02:03]} Re8
{[%clk 00:02:03]} {[%emt 00:04:10]} 16. Qb3 {[%clk 00:28:58]} {[%emt 00:01:45]}
Rc8 {[%clk 00:01:08]} {[%emt 00:01:05]} 17. Ne5 {[%clk 00:27:15]} {[%emt
00:01:54]} Nxe5 {[%clk 00:00:16]} {[%emt 00:01:01]} 18. dxe5 {[%clk 00:26:49]}
{[%emt 00:00:36]} Nd7 {[%clk 00:00:13]} {[%emt 00:00:13]} 19. Bg3 {[%clk
00:26:33]} {[%emt 00:00:26]} Nc5 {[%clk 00:00:11]} {[%emt 00:00:12]} 20. Qc2
{[%clk 00:26:37]} {[%emt 00:00:06]} Ra8 {[%clk 00:00:11]} {[%emt 00:00:09]} 21.
b4 {[%clk 00:26:27]} {[%emt 00:00:21]} Nd7 {[%clk 00:00:13]} {[%emt 00:00:08]}
22. Nxd5 {[%clk 00:26:24]} {[%emt 00:00:13]} Bxd5 {[%clk 00:00:12]} {[%emt
00:00:11]} 23. Rxd5 {[%clk 00:26:32]} {[%emt 00:00:02]} Rc8 {[%clk 00:00:11]}
{[%emt 00:00:11]} 24. Qxc8 {[%clk 00:26:02]} {[%emt 00:00:39]} Qxc8 {[%clk
00:00:18]} {[%emt 00:00:03]} 25. Rxc8 {[%clk 00:26:11]} {[%emt 00:00:02]} Rxc8
{[%clk 00:00:26]} {[%emt 00:00:02]} 26. Rd1 {[%clk 00:26:20]} {[%emt 00:00:02]}
Rc2 {[%clk 00:00:11]} {[%emt 00:00:24]} 27. Bxc2 {[%clk 00:26:27]} {[%emt
00:00:03]} Bxb4 {[%clk 00:00:20]} {[%emt 00:00:01]} 28. Rxd7 {[%clk 00:26:35]}
{[%emt 00:00:02]} a5 {[%clk 00:00:17]} {[%emt 00:00:12]} 29. Bb3 {[%clk
00:26:43]} {[%emt 00:00:03]} Kh8 {[%clk 00:00:12]} {[%emt 00:00:15]} 30. Bc2
{[%clk 00:26:37]} {[%emt 00:00:17]} Kg8 {[%clk 00:00:14]} {[%emt 00:00:07]} 31.
e6 {[%clk 00:26:39]} {[%emt 00:00:08]} fxe6 {[%clk 00:00:15]} {[%emt 00:00:09]}
32. Bg6 {[%clk 00:26:47]} {[%emt 00:00:02]} Kf8 {[%clk 00:00:00]} {[%emt
00:00:14]} 1-0

[Event "FIDE U16 Olympiad_boards_1-80"]
[Site "Eindhoven, Netherlands"]
[Date "2023.08.13"]
[Round "1.61"]
[White "Aswath, S"]
[Black "Mwase, Arthur"]
[Result "1-0"]
[TimeControl "2700+10"]
[WhiteElo "2229"]
[BlackElo "1504"]

1. d4 {[%clk 00:45:16]} {[%emt 00:00:04]} d5 {[%clk 00:45:05]} {[%emt
00:00:15]} 2. c4 {[%clk 00:45:08]} {[%emt 00:00:19]} e6 {[%clk 00:45:05]}
{[%emt 00:00:09]} 3. g3 {[%clk 00:45:15]} {[%emt 00:00:03]} Bb4+ {[%clk
00:44:52]} {[%emt 00:00:23]} 4. Nd2 {[%clk 00:45:21]} {[%emt 00:00:04]} Nf6
{[%clk 00:44:35]} {[%emt 00:00:27]} 5. Bg2 {[%clk 00:45:28]} {[%emt 00:00:03]}
O-O {[%clk 00:44:35]} {[%emt 00:00:10]} 6. Ngf3 {[%clk 00:45:32]} {[%emt
00:00:06]} b6 {[%clk 00:44:38]} {[%emt 00:00:07]} 7. O-O {[%clk 00:45:34]}
{[%emt 00:00:08]} Bb7 {[%clk 00:44:44]} {[%emt 00:00:05]} 8. a3 {[%clk
00:45:41]} {[%emt 00:00:02]} Bxd2 {[%clk 00:44:34]} {[%emt 00:00:20]} 9. Nxd2
{[%clk 00:45:38]} {[%emt 00:00:14]} a5 {[%clk 00:43:48]} {[%emt 00:00:56]} 10.
b3 {[%clk 00:45:24]} {[%emt 00:00:23]} Nc6 {[%clk 00:43:05]} {[%emt 00:00:53]}
11. Bb2 {[%clk 00:45:18]} {[%emt 00:00:16]} Re8 {[%clk 00:40:51]} {[%emt
00:02:24]} 12. Qc2 {[%clk 00:43:58]} {[%emt 00:01:30]} Rb8 {[%clk 00:39:02]}
{[%emt 00:02:00]} 13. Rfd1 {[%clk 00:42:21]} {[%emt 00:01:47]} Qd7 {[%clk
00:34:25]} {[%emt 00:04:47]} 14. e4 {[%clk 00:39:46]} {[%emt 00:02:45]} Red8
{[%clk 00:27:28]} {[%emt 00:07:07]} 15. e5 {[%clk 00:36:00]} {[%emt 00:03:56]}
Ne8 {[%clk 00:26:55]} {[%emt 00:00:43]} 16. cxd5 {[%clk 00:32:42]} {[%emt
00:03:27]} exd5 {[%clk 00:26:07]} {[%emt 00:00:59]} 17. Nf1 {[%clk 00:31:38]}
{[%emt 00:01:14]} g6 {[%clk 00:23:34]} {[%emt 00:02:43]} 18. h4 {[%clk
00:31:02]} {[%emt 00:00:46]} Ng7 {[%clk 00:23:08]} {[%emt 00:00:35]} 19. Rac1
{[%clk 00:30:15]} {[%emt 00:00:58]} Rbc8 {[%clk 00:20:42]} {[%emt 00:02:36]} 20.
Ne3 {[%clk 00:29:56]} {[%emt 00:00:28]} Qe6 {[%clk 00:18:24]} {[%emt 00:02:28]}
21. Kh2 {[%clk 00:28:56]} {[%emt 00:01:10]} Rb8 {[%clk 00:17:57]} {[%emt
00:00:38]} 22. Bf3 {[%clk 00:25:53]} {[%emt 00:03:12]} h5 {[%clk 00:16:47]}
{[%emt 00:01:21]} 23. Ng2 {[%clk 00:25:46]} {[%emt 00:00:17]} Qf5 {[%clk
00:15:04]} {[%emt 00:01:53]} 24. Nf4 {[%clk 00:25:38]} {[%emt 00:00:17]} Qxc2
{[%clk 00:13:54]} {[%emt 00:01:20]} 25. Rxc2 {[%clk 00:25:45]} {[%emt
00:00:03]} Nf5 {[%clk 00:13:08]} {[%emt 00:00:56]} 26. Ne2 {[%clk 00:17:28]}
{[%emt 00:08:27]} Kg7 {[%clk 00:09:01]} {[%emt 00:04:17]} 27. Rdc1 {[%clk
00:16:55]} {[%emt 00:00:44]} Nfe7 {[%clk 00:09:08]} {[%emt 00:00:02]} 28. Bg2
{[%clk 00:16:16]} {[%emt 00:00:49]} Ba6 {[%clk 00:06:25]} {[%emt 00:02:54]} 29.
Nf4 {[%clk 00:16:02]} {[%emt 00:00:23]} Bb7 {[%clk 00:06:03]} {[%emt 00:00:33]}
30. a4 {[%clk 00:16:10]} {[%emt 00:00:02]} Ba8 {[%clk 00:04:39]} {[%emt
00:01:34]} 31. Ba3 {[%clk 00:15:56]} {[%emt 00:00:24]} Nf5 {[%clk 00:03:44]}
{[%emt 00:01:04]} 32. Rxc6 {[%clk 00:15:59]} {[%emt 00:00:08]} Bxc6 {[%clk
00:03:51]} {[%emt 00:00:02]} 33. Rxc6 {[%clk 00:16:06]} {[%emt 00:00:04]} Nxd4
{[%clk 00:03:45]} {[%emt 00:00:15]} 34. Rxc7 {[%clk 00:15:54]} {[%emt
00:00:22]} Rbc8 {[%clk 00:03:07]} {[%emt 00:00:48]} 35. Rb7 {[%clk 00:15:25]}
{[%emt 00:00:39]} Rb8 {[%clk 00:03:07]} {[%emt 00:00:10]} 36. Rxb8 {[%clk
00:15:25]} {[%emt 00:00:11]} Rxb8 {[%clk 00:03:15]} {[%emt 00:00:01]} 37. Bxd5
{[%clk 00:15:30]} {[%emt 00:00:05]} b5 {[%clk 00:02:27]} {[%emt 00:00:57]} 38.
axb5 {[%clk 00:12:56]} {[%emt 00:02:46]} Nxb5 {[%clk 00:01:56]} {[%emt
00:00:41]} 39. Bb2 {[%clk 00:11:48]} {[%emt 00:01:17]} Kf8 {[%clk 00:00:44]}
{[%emt 00:01:22]} 40. e6 {[%clk 00:11:38]} {[%emt 00:00:20]} fxe6 {[%clk
00:00:13]} {[%emt 00:00:42]} 41. Bxe6 {[%clk 00:11:45]} {[%emt 00:00:03]} Ke7
{[%clk 00:00:13]} {[%emt 00:00:10]} 42. Bc4 {[%clk 00:10:57]} {[%emt 00:00:57]}
Nd6 {[%clk 00:00:13]} {[%emt 00:00:10]} 43. Be5 {[%clk 00:11:01]} {[%emt
00:00:06]} 1-0

[Event "FIDE U16 Olympiad_boards_1-80"]
[Site "Eindhoven, Netherlands"]
[Date "2023.08.13"]
[Round "1.62"]
[White "Pido, Edwin"]
[Black "Adireddy, Arjun"]
[Result "1/2-1/2"]
[TimeControl "2700+10"]
[WhiteElo "1482"]
[BlackElo "1987"]

1. d4 {[%clk 00:45:14]} {[%emt 00:00:06]} d5 {[%clk 00:45:11]} {[%emt
00:00:09]} 2. c4 {[%clk 00:45:21]} {[%emt 00:00:03]} c6 {[%clk 00:45:13]}
{[%emt 00:00:09]} 3. Nf3 {[%clk 00:45:20]} {[%emt 00:00:10]} Nf6 {[%clk
00:45:20]} {[%emt 00:00:04]} 4. Nc3 {[%clk 00:45:22]} {[%emt 00:00:07]} e6
{[%clk 00:45:22]} {[%emt 00:00:08]} 5. e3 {[%clk 00:45:19]} {[%emt 00:00:14]}
Nbd7 {[%clk 00:45:26]} {[%emt 00:00:06]} 6. Be2 {[%clk 00:45:12]} {[%emt
00:00:16]} dxc4 {[%clk 00:44:40]} {[%emt 00:00:56]} 7. Bxc4 {[%clk 00:45:18]}
{[%emt 00:00:04]} b5 {[%clk 00:44:48]} {[%emt 00:00:02]} 8. Bd3 {[%clk
00:45:25]} {[%emt 00:00:02]} a6 {[%clk 00:44:56]} {[%emt 00:00:03]} 9. O-O
{[%clk 00:44:33]} {[%emt 00:01:02]} c5 {[%clk 00:44:50]} {[%emt 00:00:17]} 10.
Re1 {[%clk 00:43:14]} {[%emt 00:01:29]} Bb7 {[%clk 00:43:00]} {[%emt 00:02:01]}
11. Bd2 {[%clk 00:40:08]} {[%emt 00:03:15]} Bd6 {[%clk 00:41:21]} {[%emt
00:01:48]} 12. Rc1 {[%clk 00:39:31]} {[%emt 00:00:48]} O-O {[%clk 00:40:14]}
{[%emt 00:01:17]} 13. Qe2 {[%clk 00:36:02]} {[%emt 00:03:39]} h6 {[%clk
00:33:49]} {[%emt 00:06:35]} 14. Red1 {[%clk 00:31:27]} {[%emt 00:04:44]} Qe7
{[%clk 00:30:43]} {[%emt 00:03:17]} 15. Bc2 {[%clk 00:25:33]} {[%emt 00:06:04]}
cxd4 {[%clk 00:26:11]} {[%emt 00:04:41]} 16. exd4 {[%clk 00:24:06]} {[%emt
00:01:37]} Rac8 {[%clk 00:23:44]} {[%emt 00:02:38]} 17. h3 {[%clk 00:19:55]}
{[%emt 00:04:21]} Nb6 {[%clk 00:18:18]} {[%emt 00:05:35]} 18. Ne4 {[%clk
00:16:35]} {[%emt 00:03:30]} Nxe4 {[%clk 00:18:01]} {[%emt 00:00:28]} 19. Bxe4
{[%clk 00:16:40]} {[%emt 00:00:04]} Nc4 {[%clk 00:15:58]} {[%emt 00:02:14]} 20.
Bxb7 {[%clk 00:13:27]} {[%emt 00:03:22]} Qxb7 {[%clk 00:16:05]} {[%emt
00:00:04]} 21. b3 {[%clk 00:12:07]} {[%emt 00:01:30]} Nxd2 {[%clk 00:14:58]}
{[%emt 00:01:17]} 22. Qxd2 {[%clk 00:10:35]} {[%emt 00:01:42]} Qd5 {[%clk
00:13:43]} {[%emt 00:01:25]} 23. Rxc8 {[%clk 00:09:54]} {[%emt 00:00:51]} Rxc8
{[%clk 00:13:49]} {[%emt 00:00:03]} 24. Rc1 {[%clk 00:09:36]} {[%emt 00:00:28]}
Rxc1+ {[%clk 00:13:11]} 25. Qxc1 {[%clk 00:09:43]} {[%emt 00:00:51]} Qe4 {[%clk
00:13:19]} {[%emt 00:00:02]} 26. Qc8+ {[%clk 00:09:19]} {[%emt 00:00:33]} Kh7
{[%clk 00:13:17]} {[%emt 00:00:13]} 27. Qc1 {[%clk 00:08:59]} {[%emt 00:00:29]}
Bf4 {[%clk 00:10:30]} {[%emt 00:02:58]} 28. Qd1 {[%clk 00:08:50]} {[%emt
00:00:19]} Bc7 {[%clk 00:07:05]} {[%emt 00:03:35]} 29. Ne1 {[%clk 00:07:03]}
{[%emt 00:01:57]} f5 {[%clk 00:03:14]} {[%emt 00:04:02]} 30. Nf3 {[%clk
00:06:35]} {[%emt 00:00:37]} Bb6 {[%clk 00:03:01]} {[%emt 00:00:23]} 31. Ng5+
{[%clk 00:04:25]} {[%emt 00:02:20]} hxg5 {[%clk 00:02:42]} {[%emt 00:00:29]} 32.
Qh5+ {[%clk 00:04:32]} {[%emt 00:00:03]} Kg8 {[%clk 00:02:50]} {[%emt
00:00:02]} 33. Qe8+ {[%clk 00:04:39]} {[%emt 00:00:03]} Kh7 {[%clk 00:02:57]}
{[%emt 00:00:04]} 34. Qh5+ {[%clk 00:04:32]} {[%emt 00:00:06]} 1/2-1/2